bitfinex-derivatives/quotes_ETHF0:USTF0_20250327
["timestamp","ask_amount","ask_price","bid_price","bid_amount"]
[1743053326393,0.00740613,2026.7,2026.6,49.29825]
[1743053333284,1.4297,2026.9,2026.8,0.98665]
[1743053333490,1.4297,2026.9,2026.8,3.49665]
[1743053333891,1.4297,2026.9,2026.8,45.62715]
[1743053336086,1.4297,2026.9,2026.8,43.11715]
[1743053336285,1.4297,2026.9,2026.8,45.20715]
[1743053336895,1.4297,2026.9,2026.8,48.41495]
[1743053339398,1.4297,2026.9,2026.8,46.32495]
[1743053340294,1.4297,2026.9,2026.8,48.32495]
[1743053342399,1.4297,2026.9,2026.8,45.11715]
[1743053342789,1.4297,2026.9,2026.8,48.32495]
[1743053343901,1.4297,2026.9,2026.8,46.32495]
[1743053344199,1.4297,2026.9,2026.8,48.27495]
[1743053345196,1.4297,2026.9,2026.8,45.06715]
[1743053345397,1.4297,2026.9,2026.8,45.07715]
[1743053345596,1.4297,2026.9,2026.8,46.32495]
[1743053346696,1.4297,2026.9,2026.8,46.74495]
[1743053347896,2.41631,2026.9,2026.8,4.5383]
[1743053348098,0.98675,2026.6,2026.5,3.2078]
[1743053348300,0.98675,2026.6,2026.5,4.6278]
[1743053348504,0.98675,2026.6,2026.5,5.6146]
[1743053348700,0.98675,2026.6,2026.5,7.024]
[1743053349094,2.31165,2026.6,2026.5,7.024]
[1743053349301,2.31165,2026.6,2026.5,6.0372]
[1743053349605,2.31165,2026.6,2026.5,7.024]
[1743053349804,2.31165,2026.6,2026.5,6.0372]
[1743053350702,1.3249,2026.6,2026.5,7.024]
[1743053351200,2.31165,2026.6,2026.5,6.0372]
[1743053351600,2.31165,2026.6,2026.5,7.024]
[1743053351805,2.31165,2026.6,2026.5,6.0372]
[1743053352106,2.31165,2026.6,2026.5,7.024]
[1743053352894,1.3249,2026.6,2026.5,7.024]
[1743053354599,1.3249,2026.6,2026.5,3.8162]
[1743053367215,1.3249,2026.6,2026.5,4.4952]
[1743053368006,1.3249,2026.6,2026.5,5.1487]
[1743053375018,1.3249,2026.6,2026.5,4.4952]
[1743053380022,2.31165,2026.6,2026.5,2.4068]
[1743053380330,1.3249,2026.6,2026.5,3.7442]
[1743053381422,1.3249,2026.6,2026.5,6.952]
[1743053386435,1.3249,2026.6,2026.5,3.7442]
[1743053386636,1.3249,2026.6,2026.5,6.952]
[1743053387030,2.31165,2026.6,2026.5,6.952]
[1743053387235,1.3249,2026.6,2026.5,6.952]
[1743053396734,5.83,2027.0,2026.6,2.46689]
[1743053397039,7.50433454,2027.0,2026.9,4.19441]
[1743053397236,8.89583454,2027.0,2026.9,6.89441]
[1743053397439,8.89583454,2027.0,2026.9,6.50441]
[1743053398037,8.89583454,2027.0,2026.9,7.16971]
[1743053398335,7.2215,2027.0,2026.9,6.95971]
[1743053398727,0.69880613,2027.1,2027.0,0.98656]
[1743053398927,0.69880613,2027.1,2027.0,3.02966]
[1743053399936,0.00740613,2027.1,2027.0,3.02966]
[1743053400641,1.31780613,2027.1,2027.0,3.02966]
[1743053401131,2.30431613,2027.1,2027.0,2.0431]
[1743053401332,1.31780613,2027.1,2027.0,3.02966]
[1743053401839,1.31780613,2027.1,2026.6,2.46689]
[1743053401840,0.98667,2026.8,2026.6,3.2078]
[1743053402039,0.98667,2026.8,2026.7,1.4074]
[1743053402239,0.98667,2026.8,2026.7,1.36]
[1743053402442,0.98667,2026.8,2026.7,2.7674]
[1743053402942,5.83,2026.9,2026.7,2.7674]
[1743053403144,7.79201797,2026.9,2026.8,1.4074]
[1743053403433,7.79201797,2026.9,2026.8,3.6974]
[1743053403629,7.79200055,2026.9,2026.8,1.4074]
[1743053404237,7.79200055,2026.9,2026.8,1.8374]
[1743053404741,6.81661,2026.9,2026.8,1.8374]
[1743053404940,7.79188968,2026.9,2026.8,1.4074]
[1743053405241,7.79189171,2026.9,2026.8,1.8774]
[1743053405539,6.81661,2026.9,2026.8,1.8774]
[1743053405742,6.81661,2026.9,2026.8,1.4074]
[1743053406431,7.79183515,2026.9,2026.8,1.8074]
[1743053406636,6.81661,2026.9,2026.8,1.4074]
[1743053406832,6.81661,2026.9,2026.6,3.2078]
[1743053406833,0.9867,2026.7,2026.6,3.2078]
[1743053407038,0.9867,2026.7,2026.6,4.6678]
[1743053407439,4.808,2026.7,2026.6,1.46]
[1743053407937,4.808,2026.7,2026.3,1.3043]
[1743053407938,0.98685,2026.4,2026.3,1.3043]
[1743053409534,0.98685,2026.4,2026.2,0.00740613]
[1743053409535,0.9869,2026.3,2026.2,0.00740613]
[1743053409730,2.65540126,2026.3,2026.2,0.00740613]
[1743053410138,2.65540126,2026.3,2026.2,1.39860613]
[1743053410336,1.6802,2026.3,2026.2,3.62860613]
[1743053410541,1.6802,2026.3,2026.2,1.39860613]
[1743053411745,0.6933,2026.3,2026.2,1.39860613]
[1743053412044,0.9869,2026.3,2026.2,3.53860613]
[1743053412339,3.128,2026.4,2026.2,4.52555613]
[1743053412340,4.11488,2026.4,2026.2,4.52555613]
[1743053412559,3.128,2026.4,2026.3,1.3912]
[1743053412744,4.11485,2026.4,2026.3,2.1032]
[1743053413840,4.11485,2026.4,2026.3,4.3232]
[1743053414239,4.11485,2026.4,2026.3,4.1232]
[1743053414432,3.128,2026.4,2026.3,5.1101]
[1743053414638,0.98685,2026.4,2026.3,2.1032]
[1743053417543,0.98685,2026.4,2026.3,4.2832]
[1743053417745,0.98685,2026.4,2026.3,2.1032]
[1743053419047,2.36403,2026.5,2026.3,4.3332]
[1743053419249,2.36403,2026.5,2026.4,1.4332]
[1743053421051,1.69493,2026.5,2026.4,1.4332]
[1743053421254,3.07803,2026.5,2026.4,1.4332]
[1743053429863,3.07803,2026.5,2026.4,3.7332]
[1743053430050,3.07803,2026.5,2026.4,1.4332]
[1743053430751,3.898,2026.7,2026.4,3.6532]
[1743053430947,1.3388,2026.6,2026.5,0.98677]
[1743053431253,1.3388,2026.6,2026.5,4.46857]
[1743053431558,3.2078,2026.7,2026.6,0.98675]
[1743053431751,4.5653,2026.7,2026.6,3.01855]
[1743053432157,5.552,2026.7,2026.6,3.01855]
[1743053433957,4.5653,2026.7,2026.6,3.01855]
[1743053434253,5.552,2026.7,2026.6,2.0318]
[1743053435454,4.5653,2026.7,2026.6,2.0318]
[1743053435756,2.3442,2026.7,2026.6,2.0318]
[1743053436061,2.3442,2026.7,2026.6,4.2418]
[1743053436451,2.3442,2026.7,2026.6,4.3918]
[1743053436657,12.8953,2026.7,2026.2,3.21520613]
[1743053436953,12.8953,2026.7,2025.4,0.76777647]
[1743053436954,0.98719,2025.7,2025.6,3.2078]
[1743053437146,0.98724,2025.6,2025.5,2.0211]
[1743053437346,2.39134,2025.6,2025.5,1.3707]
[1743053442562,6.81721,2025.7,2025.5,5.56579]
[1743053442752,8.15741,2025.7,2025.5,5.99579]
[1743053443064,8.15741,2025.7,2025.5,5.56579]
[1743053443265,0.98724,2025.6,2025.5,4.5785]
[1743053443758,0.98724,2025.6,2025.5,6.6485]
[1743053444063,0.98724,2025.6,2025.5,4.5785]
[1743053444264,2.31874,2025.6,2025.5,4.5785]
[1743053447369,0.68600613,2025.8,2025.5,5.56579]
[1743053447571,1.3757,2025.7,2025.5,5.56579]
[1743053447866,0.98724,2025.6,2025.5,4.5785]
[1743053449670,0.98724,2025.6,2025.5,5.0485]
[1743053449872,2.36291,2025.7,2025.5,6.03577]
[1743053450068,2.36291,2025.7,2025.5,7.77577]
[1743053450467,2.36291,2025.7,2025.5,7.81577]
[1743053451071,2.36291,2025.7,2025.6,1.3369]
[1743053451597,1.3757,2025.7,2025.3,0.99477613]
[1743053451770,2.0458,2025.6,2025.4,1.3369]
[1743053452071,1.3792,2025.5,2025.4,1.3369]
[1743053452275,2.36652,2025.5,2025.4,1.3369]
[1743053456574,0.98729,2025.5,2025.4,4.40424]
[1743053456770,2.0551,2025.6,2025.4,4.40424]
[1743053456974,0.98729,2025.5,2025.4,2.08]
[1743053457179,0.98729,2025.5,2025.4,5.2878]
[1743053457473,2.37579,2025.5,2025.4,5.2878]
[1743053457666,1.3885,2025.5,2025.4,5.2878]
[1743053458180,2.37579,2025.5,2025.4,5.2878]
[1743053458476,2.37579,2025.5,2025.4,6.27514]
[1743053458982,1.65386,2025.6,2025.4,5.2878]
[1743053459183,2.98956,2025.6,2025.4,6.27511]
[1743053460387,2.0023,2025.6,2025.4,6.27511]
[1743053460584,1.3357,2025.5,2025.4,6.27511]
[1743053463279,2.32299,2025.5,2025.4,5.2878]
[1743053463986,1.3357,2025.5,2025.4,6.27514]
[1743053464590,2.32299,2025.5,2025.4,6.27514]
[1743053465091,1.3357,2025.5,2025.4,6.27514]
[1743053465794,2.32299,2025.5,2025.4,6.27514]
[1743053466594,2.32299,2025.5,2025.4,4.19514]
[1743053467195,1.3357,2025.5,2025.4,4.19514]
[1743053468386,1.3357,2025.5,2025.4,6.16514]
[1743053468786,1.3357,2025.5,2025.4,4.90464]
[1743053469187,1.3357,2025.5,2025.4,6.99464]
[1743053469587,1.3357,2025.5,2025.4,7.26464]
[1743053470098,0.6666,2025.6,2025.5,0.98729]
[1743053470392,0.98722,2025.7,2025.5,0.98729]
[1743053470592,2.34592,2025.7,2025.5,3.37729]
[1743053470793,1.3587,2025.7,2025.5,0.98729]
[1743053471095,1.3587,2025.6,2025.5,3.20729]
[1743053471393,1.3587,2025.6,2025.5,4.57539]
[1743053471591,1.3587,2025.6,2025.5,2.37539]
[1743053472387,1.3587,2025.6,2025.5,4.66539]
[1743053472590,1.3587,2025.6,2025.5,4.63539]
[1743053473086,1.3587,2025.6,2025.5,2.37539]
[1743053473288,1.3587,2025.6,2025.5,4.40539]
[1743053473701,1.3587,2025.6,2025.5,2.37539]
[1743053473997,1.3587,2025.6,2025.5,4.44539]
[1743053478003,1.3587,2025.6,2025.5,7.65319]
[1743053479200,2.34594,2025.6,2025.5,6.6659]
[1743053479701,1.3587,2025.6,2025.5,7.65319]
[1743053480199,1.3587,2025.6,2025.5,5.58319]
[1743053480393,1.3587,2025.6,2025.5,7.69319]
[1743053480799,1.3587,2025.6,2025.5,7.59319]
[1743053481398,1.3587,2025.6,2025.5,7.61319]
[1743053481800,1.3587,2025.6,2025.5,5.58319]
[1743053482207,1.3587,2025.6,2025.5,7.56319]
[1743053482408,1.3587,2025.6,2025.5,5.58319]
[1743053482605,1.3587,2025.6,2025.5,7.59319]
[1743053482906,1.3587,2025.6,2025.5,5.58319]
[1743053484608,1.3587,2025.6,2025.5,7.52319]
[1743053484808,1.3587,2025.6,2025.5,5.58319]
[1743053485009,1.3587,2025.6,2025.5,7.77319]
[1743053485507,1.3587,2025.6,2025.5,7.71319]
[1743053487107,1.3587,2025.6,2025.5,5.58319]
[1743053487309,2.34594,2025.6,2025.5,4.5959]
[1743053487712,1.3587,2025.6,2025.5,5.58319]
[1743053488005,2.34594,2025.6,2025.5,5.58319]
[1743053488204,1.3587,2025.6,2025.5,5.58319]
[1743053488711,2.34594,2025.6,2025.5,4.5959]
[1743053488897,0.98734,2025.4,2025.3,0.00740613]
[1743053489205,0.98734,2025.4,2025.3,1.01740613]
[1743053489432,1.96097742,2025.4,2025.3,1.01740613]
[1743053489609,0.98738,2025.3,2025.2,3.2078]
[1743053489799,0.98738,2025.3,2025.2,3.20039387]
[1743053489800,2.32218,2025.3,2025.2,3.20039387]
[1743053490115,2.4687,2025.2,2024.8,3.2078]
[1743053490304,3.2078,2024.9,2024.6,0.01841]
[1743053490615,5.46943,2024.8,2024.6,1.00611]
[1743053490804,4.13463,2024.8,2024.7,1.3813]
[1743053491009,0.98763,2024.8,2024.7,1.3813]
[1743053491208,0.98768,2024.7,2024.6,0.01841]
[1743053491408,4.14568,2024.7,2024.6,0.01841]
[1743053491608,4.81008,2024.7,2024.6,0.01841]
[1743053493017,5.52868,2024.7,2024.6,0.01841]
[1743053497107,7.041,2024.7,2023.8,3.2078]
[1743053497315,5.67724,2024.5,2024.0,0.98798]
[1743053497515,0.98793,2024.2,2024.0,3.45798]
[1743053497718,0.98793,2024.2,2024.1,1.4293]
[1743053498216,3.16,2024.4,2023.8,3.2078]
[1743053498515,0.697,2024.3,2023.9,1.4293]
[1743053498728,1.68491,2024.3,2024.0,0.98797]
[1743053499017,1.68491,2024.3,2024.0,0.988]
[1743053499018,0.98793,2024.2,2024.0,0.988]
[1743053499316,0.697,2024.3,2023.9,0.98807]
[1743053499514,0.697,2024.3,2024.0,1.3747]
[1743053499717,0.98797,2024.2,2024.0,3.5147]
[1743053500018,0.98797,2024.2,2024.1,1.3747]
[1743053500313,0.697,2024.3,2024.1,4.71265]
[1743053500314,1.68492,2024.3,2024.1,4.71265]
[1743053500510,4.82537,2024.4,2024.1,1.3747]
[1743053500716,4.82536,2024.4,2024.2,3.74301]
[1743053500917,4.82536,2024.4,2024.3,1.3747]
[1743053501119,1.66536,2024.4,2024.3,1.3747]
[1743053501418,3.06556,2024.4,2024.3,1.3747]
[1743053511419,0.988,2024.1,2023.9,0.98803]
[1743053511621,0.988,2024.1,2024.0,1.351]
[1743053512428,0.98807,2023.9,2023.8,3.2078]
[1743053512627,0.9882,2023.7,2023.5,0.98826]
[1743053512826,0.9882,2023.7,2023.5,2.1]
[1743053513131,0.9882,2023.7,2023.6,1.2971]
[1743053513328,0.9882,2023.7,2023.6,3.2871]
[1743053513725,0.9882,2023.7,2023.6,1.2971]
[1743053514635,2.3356,2023.7,2023.6,1.2971]
[1743053515638,2.33557,2023.7,2023.6,2.28531]
[1743053515837,0.98817,2023.7,2023.6,2.28531]
[1743053516534,0.98817,2023.7,2023.6,1.2971]
[1743053516727,0.98817,2023.7,2023.6,3.5671]
[1743053517122,0.98817,2023.7,2023.6,1.2971]
[1743053517842,5.54333,2023.8,2023.6,1.2971]
[1743053518033,5.54333,2023.8,2023.6,2.2853]
[1743053518237,5.54333,2023.8,2023.7,0.685]
[1743053518437,5.54333,2023.8,2023.7,2.0009]
[1743053519528,4.5552,2023.8,2023.4,3.8699]
[1743053519728,0.98823,2023.6,2023.5,2.0009]
[1743053520235,2.30333,2023.6,2023.5,2.0009]
[1743053520432,2.30333,2023.6,2023.5,4.92916]
[1743053520632,1.3151,2023.6,2023.5,2.98916]
[1743053520930,3.2078,2023.8,2023.5,2.98916]
[1743053521147,1.3151,2023.7,2023.6,1.3593]
[1743053521324,2.3033,2023.7,2023.6,1.3593]
[1743053524838,2.3033,2023.7,2023.6,1.4793]
[1743053538142,0.98826,2023.5,2023.4,3.2078]
[1743053538350,6.3858,2023.5,2023.1,2.39342]
[1743053538654,4.19323,2023.6,2023.2,4.5779]
[1743053538849,0.00740613,2023.5,2023.4,0.98829]
[1743053539049,0.00740613,2023.5,2023.4,3.65829]
[1743053539252,0.00740613,2023.5,2023.4,0.98829]
[1743053540553,0.00740613,2023.5,2023.4,3.29829]
[1743053541151,0.99566613,2023.5,2023.4,0.98829]
[1743053541347,0.00740613,2023.5,2023.4,0.98829]
[1743053541541,0.00740613,2023.5,2023.4,2.95829]
[1743053541955,0.99566613,2023.5,2023.4,2.95829]
[1743053542254,0.00740613,2023.5,2023.4,2.95829]
[1743053542551,0.00740613,2023.5,2023.4,0.98829]
[1743053542754,0.00740613,2023.5,2023.4,3.26829]
[1743053543951,0.00740613,2023.5,2023.4,0.98829]
[1743053544146,0.00740613,2023.5,2023.4,3.02829]
[1743053544641,0.00740613,2023.5,2023.4,0.98829]
[1743053544846,0.00740613,2023.5,2023.4,3.17829]
[1743053546550,0.00740613,2023.5,2023.4,1.66639]
[1743053546750,0.00740613,2023.5,2023.4,3.89639]
[1743053546966,0.00740613,2023.5,2023.4,1.66639]
[1743053547249,0.00740613,2023.5,2023.4,4.04639]
[1743053548457,0.00740613,2023.5,2023.4,1.66639]
[1743053548657,0.00740613,2023.5,2023.4,3.64639]
[1743053548956,0.00740613,2023.5,2023.4,3.69639]
[1743053551353,0.00740613,2023.5,2023.4,5.06689]
[1743053552362,0.00740613,2023.5,2023.4,3.03689]
[1743053552660,0.00740613,2023.5,2023.4,3.45689]
[1743053553258,0.00740613,2023.5,2023.4,3.03689]
[1743053553456,0.00740613,2023.5,2023.4,5.11689]
[1743053555151,0.00740613,2023.5,2023.4,3.03689]
[1743053555454,0.00740613,2023.5,2023.4,5.09689]
[1743053556159,0.00740613,2023.5,2023.4,3.74709]
[1743053556360,0.00740613,2023.5,2023.4,5.66709]
[1743053557958,0.00740613,2023.5,2023.4,3.74709]
[1743053558162,0.00740613,2023.5,2023.4,5.99709]
[1743053558555,0.00740613,2023.5,2023.4,9.20489]
[1743053559065,0.00740613,2023.5,2023.4,6.95489]
[1743053559555,0.00740613,2023.5,2023.4,7.42489]
[1743053559957,0.00740613,2023.5,2023.4,6.95489]
[1743053560162,0.00740613,2023.5,2023.4,8.96489]
[1743053561662,0.00740613,2023.5,2023.4,6.95489]
[1743053562261,0.00740613,2023.5,2023.4,8.91489]
[1743053562459,0.00740613,2023.5,2023.4,6.95489]
[1743053562669,0.00740613,2023.5,2023.4,9.09489]
[1743053565061,0.00740613,2023.5,2023.4,5.88709]
[1743053572277,1.69376613,2023.5,2023.4,2.14]
[1743053572574,1.36740613,2023.5,2023.4,3.12831]
[1743053572768,2.76640613,2023.5,2023.4,5.17251]
[1743053573368,2.10450613,2023.5,2023.4,5.17251]
[1743053576765,1.40640613,2023.5,2023.4,5.17251]
[1743053578184,0.00740613,2023.5,2023.4,5.17251]
[1743053584982,0.00740613,2023.5,2023.4,3.12831]
[1743053585385,0.00740613,2023.5,2023.4,4.45521]
[1743053585583,0.00740613,2023.5,2023.4,45.25521]
[1743053586183,0.00740613,2023.5,2023.4,4.45521]
[1743053586387,0.00740613,2023.5,2023.4,3.12831]
[1743053586592,0.00740613,2023.5,2023.4,4.45521]
[1743053586887,0.00740613,2023.5,2023.4,45.25521]
[1743053587086,0.00740613,2023.5,2023.4,45.95411]
[1743053587279,0.00740613,2023.5,2023.4,46.65151]
[1743053587479,4.15303,2024.0,2023.8,0.98808]
[1743053587684,6.49956939,2024.0,2023.7,0.98813]
[1743053588081,6.49956939,2024.0,2023.8,0.98811]
[1743053588387,7.49243546,2024.0,2023.8,0.98811]
[1743053588784,1.3694,2023.9,2023.8,0.98811]
[1743053589089,3.33200939,2023.9,2023.8,2.41401]
[1743053590393,2.34393939,2023.9,2023.8,2.41401]
[1743053592999,3.33200939,2023.9,2023.8,2.41401]
[1743053593297,2.34393939,2023.9,2023.8,2.41401]
[1743053593496,2.34393939,2023.9,2023.8,4.64401]
[1743053593894,3.33200939,2023.9,2023.7,0.99556613]
[1743053594094,1.3929,2023.8,2023.7,3.27556613]
[1743053594693,1.3929,2023.8,2023.7,3.06556613]
[1743053595298,1.3929,2023.8,2023.7,0.99556613]
[1743053595491,1.3929,2023.8,2023.7,3.23556613]
[1743053597698,1.3929,2023.8,2023.7,2.98556613]
[1743053598196,1.3929,2023.8,2023.7,2.94556613]
[1743053598396,1.3929,2023.8,2023.7,3.04556613]
[1743053599803,7.7488618,2024.1,2023.7,2.05740613]
[1743053600101,3.2078,2024.4,2024.3,0.98787]
[1743053600312,3.2078,2024.4,2024.3,3.13787]
[1743053601903,0.00740613,2024.6,2024.5,0.98777]
[1743053602100,1.33030613,2024.6,2024.5,2.93777]
[1743053602300,1.33030613,2024.6,2024.5,1.67377]
[1743053602498,1.33030613,2024.6,2024.5,3.82377]
[1743053602804,1.33030613,2024.6,2024.5,1.67377]
[1743053603005,1.33030613,2024.6,2024.5,0.686]
[1743053603509,1.33030613,2024.6,2024.5,1.67377]
[1743053605202,1.33030613,2024.6,2024.5,0.686]
[1743053605395,1.33030613,2024.6,2024.5,1.67377]
[1743053606304,2.31803613,2024.6,2024.5,0.686]
[1743053606604,1.33030613,2024.6,2024.5,1.67377]
[1743053607903,1.33030613,2024.6,2024.2,3.2078]
[1743053608106,4.53810613,2024.6,2024.5,0.98777]
[1743053608606,1.33030613,2024.6,2024.5,0.98777]
[1743053608995,1.33030613,2024.6,2024.5,3.18777]
[1743053609207,1.33030613,2024.6,2024.5,0.98777]
[1743053609598,0.00740613,2024.6,2024.5,0.98777]
[1743053609805,0.00740613,2024.6,2024.5,44.06777]
[1743053609998,0.00740613,2024.6,2024.5,43.98777]
[1743053610900,0.00740613,2024.6,2024.5,41.78777]
[1743053611103,0.00740613,2024.6,2024.5,44.09777]
[1743053611304,0.00740613,2024.6,2024.5,41.78777]
[1743053611810,0.00740613,2024.6,2024.5,43.91777]
[1743053612306,0.00740613,2024.6,2024.5,43.76777]
[1743053613194,3.2078,2024.9,2024.8,0.98763]
[1743053613398,4.5862,2024.9,2024.8,0.98763]
[1743053614211,5.57378,2024.9,2024.8,1.3353]
[1743053615511,4.5862,2024.9,2024.8,2.32293]
[1743053616101,4.5862,2024.9,2024.8,4.53293]
[1743053616508,4.5862,2024.9,2024.8,2.32293]
[1743053616805,4.5862,2024.9,2024.8,4.52293]
[1743053617008,4.5862,2024.9,2024.8,4.55293]
[1743053617302,4.5862,2024.9,2024.8,2.32293]
[1743053619009,4.5862,2024.9,2024.8,4.53293]
[1743053619399,4.5862,2024.9,2024.8,2.32293]
[1743053621204,4.5862,2024.9,2024.8,4.63293]
[1743053621405,4.5862,2024.9,2024.8,1.3353]
[1743053621913,4.5862,2024.9,2024.8,4.35293]
[1743053622406,4.5862,2024.9,2024.8,2.32293]
[1743053623111,1.3784,2024.9,2024.8,2.32293]
[1743053623709,1.3784,2024.9,2024.8,4.69293]
[1743053623915,1.3784,2024.9,2024.8,2.32293]
[1743053624106,1.3784,2024.9,2024.8,4.62293]
[1743053624305,1.3784,2024.9,2024.8,2.32293]
[1743053624510,1.3784,2024.9,2024.8,4.53293]
[1743053625112,1.3784,2024.9,2024.8,2.32293]
[1743053625315,1.3784,2024.9,2024.8,4.44293]
[1743053625612,1.3784,2024.9,2024.8,2.32293]
[1743053626412,1.3784,2024.9,2024.4,3.2078]
[1743053626613,3.9095,2024.8,2024.4,1.4355]
[1743053626915,0.98774,2024.6,2024.5,42.1624]
[1743053627104,0.98774,2024.6,2024.5,40.8]
[1743053627307,0.98779,2024.5,2024.3,0.98786]
[1743053627514,3.05839,2024.5,2024.3,0.98786]
[1743053627714,3.05839,2024.5,2024.4,40.8]
[1743053628013,1.66369,2024.5,2024.4,40.8]
[1743053628211,1.66369,2024.5,2024.4,42.1624]
[1743053629116,0.6759,2024.5,2024.4,43.15022]
[1743053630020,1.66367,2024.5,2024.4,42.1624]
[1743053631108,0.6759,2024.5,2024.4,43.15022]
[1743053632218,0.6759,2024.5,2024.4,45.35022]
[1743053634122,0.6759,2024.5,2024.4,2.35022]
[1743053634622,0.6759,2024.5,2024.4,43.15022]
[1743053634828,0.6759,2024.5,2024.4,45.07022]
[1743053635021,1.64633,2024.6,2024.4,45.07022]
[1743053635317,0.6586,2024.6,2024.5,2.38697]
[1743053635512,0.6586,2024.6,2024.5,2.83697]
[1743053635714,0.6586,2024.6,2024.5,5.31597]
[1743053635914,0.6586,2024.6,2024.5,3.03597]
[1743053636314,1.64633,2024.6,2024.5,3.03597]
[1743053636521,0.6586,2024.6,2024.5,3.03597]
[1743053636721,0.6586,2024.6,2024.5,5.35597]
[1743053636922,1.64633,2024.6,2024.5,2.0482]
[1743053637121,1.64633,2024.6,2024.5,1.3992]
[1743053638423,0.98777,2024.5,2024.4,40.8]
[1743053638728,0.98792,2024.2,2023.8,3.2078]
[1743053638926,0.98792,2024.2,2024.0,0.98798]
[1743053639118,1.68947,2024.1,2024.0,1.01798]
[1743053639312,1.68947,2024.1,2024.0,1.4053]
[1743053639717,1.68947,2024.1,2024.0,2.39332]
[1743053639918,1.68947,2024.1,2024.0,1.4053]
[1743053640322,0.7015,2024.1,2024.0,2.39332]
[1743053640826,0.97457081,2024.4,2024.1,0.98797]
[1743053641020,0.7015,2024.3,2024.2,1.3753]
[1743053641229,3.00767,2024.3,2024.2,1.3753]
[1743053642022,2.0198,2024.3,2024.2,2.36322]
[1743053642229,1.3183,2024.3,2024.2,4.73322]
[1743053643329,3.8611,2024.5,2024.4,0.98782]
[1743053643633,4.6247,2024.5,2024.4,3.21782]
[1743053644021,4.6247,2024.5,2024.4,2.29092]
[1743053644224,3.2078,2024.5,2024.4,4.58092]
[1743053644425,1.4169,2024.6,2024.5,0.98777]
[1743053644723,1.4169,2024.6,2024.5,4.65087]
[1743053644927,1.4169,2024.6,2024.5,2.29087]
[1743053645226,3.2078,2024.7,2024.6,0.98773]
[1743053645427,4.5517,2024.7,2024.6,3.03523]
[1743053645732,4.5517,2024.7,2024.6,5.10523]
[1743053646029,4.5517,2024.7,2024.6,3.03523]
[1743053646422,4.5517,2024.7,2024.6,5.12523]
[1743053646623,4.5517,2024.7,2024.6,3.03523]
[1743053647228,4.5517,2024.7,2024.6,5.30523]
[1743053647428,4.5517,2024.7,2024.6,3.03523]
[1743053647624,4.5517,2024.7,2024.6,5.05523]
[1743053647935,4.5517,2024.7,2024.6,3.03523]
[1743053649527,4.5517,2024.7,2024.6,5.26523]
[1743053649727,4.5517,2024.7,2024.6,3.03523]
[1743053650634,4.5517,2024.7,2024.6,5.39523]
[1743053651237,4.5517,2024.7,2024.6,3.03523]
[1743053651430,4.5517,2024.7,2024.6,5.29523]
[1743053652134,4.5517,2024.7,2024.6,3.03523]
[1743053652335,4.5517,2024.7,2024.6,5.23523]
[1743053652923,4.5517,2024.7,2024.6,3.03523]
[1743053653136,4.5517,2024.7,2024.6,5.31523]
[1743053654036,3.2078,2024.7,2024.6,5.31523]
[1743053654226,3.2078,2024.7,2024.6,3.03523]
[1743053654427,3.2078,2024.7,2024.6,5.01523]
[1743053654730,3.2078,2024.7,2024.6,3.03523]
[1743053654933,3.2078,2024.7,2024.6,0.98773]
[1743053655842,5.2914,2024.7,2024.6,0.98773]
[1743053658533,2.0836,2024.7,2024.6,0.98773]
[1743053659437,3.0713,2024.7,2024.5,2.36747]
[1743053659637,2.41913,2024.6,2024.5,1.3797]
[1743053659827,2.41913,2024.6,2024.4,5.55539]
[1743053660033,1.4314,2024.5,2024.4,5.55539]
[1743053660431,1.4314,2024.5,2024.4,5.98539]
[1743053660835,1.4314,2024.5,2024.4,5.55539]
[1743053661136,1.4314,2024.5,2024.4,6.4976]
[1743053661333,1.4314,2024.5,2024.4,4.5676]
[1743053661534,1.4314,2024.5,2024.4,6.4876]
[1743053661740,1.4314,2024.5,2024.4,4.5676]
[1743053661932,1.4314,2024.5,2024.4,4.9876]
[1743053662220,1.4314,2024.5,2024.4,5.97542]
[1743053662387,1.4314,2024.5,2024.4,7.67542]
[1743053662842,1.4314,2024.5,2024.4,5.55542]
[1743053663141,1.4314,2024.5,2024.4,7.92542]
[1743053664536,1.4314,2024.5,2024.4,5.55542]
[1743053666544,1.4314,2024.5,2024.4,2.34762]
[1743053666843,1.4314,2024.5,2024.4,5.55542]
[1743053667040,1.4314,2024.5,2024.4,7.68542]
[1743053667239,1.4314,2024.5,2024.4,4.47762]
[1743053667435,1.4314,2024.5,2024.4,4.5676]
[1743053667641,1.4314,2024.5,2024.4,5.55542]
[1743053668145,2.34101,2024.7,2024.5,0.98777]
[1743053668344,3.70121,2024.7,2024.5,2.09]
[1743053668539,2.34793,2024.6,2024.5,2.09]
[1743053668737,2.34793,2024.6,2024.4,5.55539]
[1743053669245,2.34793,2024.6,2024.4,7.73539]
[1743053670738,1.3602,2024.6,2024.5,0.98777]
[1743053670951,1.3602,2024.6,2024.5,2.26]
[1743053671339,1.3602,2024.6,2024.5,3.7329]
[1743053671545,1.3602,2024.6,2024.5,4.72067]
[1743053671746,1.3602,2024.6,2024.5,3.7329]
[1743053671951,2.34793,2024.6,2024.5,1.3529]
[1743053672445,1.3602,2024.6,2024.5,4.71067]
[1743053672648,2.34793,2024.6,2024.5,1.3529]
[1743053673751,1.3602,2024.6,2024.5,2.73067]
[1743053674050,2.34793,2024.6,2024.5,1.7429]
[1743053674258,2.34793,2024.6,2024.5,1.3529]
[1743053678643,4.5062,2024.6,2024.1,3.2078]
[1743053678847,0.98797,2024.1,2024.0,0.6997]